bitfinex/quotes_SOLUSD_20220211
["timestamp","ask_amount","ask_price","bid_price","bid_amount"]
[1644550831864,0.04852089,104.98,104.93,14.2972]
[1644550832062,0.04852089,104.99,104.94,5.38161086]
[1644550832263,0.04852089,105.0,104.94,18.23379962]
[1644550832461,1.39138981,105.02,104.94,18.23379962]
[1644550832662,0.04852089,105.0,104.95,1.83918876]
[1644550832962,116.657,105.05,104.95,45.133]
[1644550832963,0.04852089,105.01,104.95,45.133]
[1644550833165,15.63876892,105.03,104.95,45.133]
[1644550833166,6.09986892,105.02,104.95,39.133]
[1644550833363,6.14838981,105.02,104.95,39.133]
[1644550833564,6.14838981,105.02,104.94,4.763]
[1644550833762,1.34286892,105.0,104.91,24.2956]
[1644550833963,6.14838981,104.99,104.91,24.2956]
[1644550834164,3.73816249,104.99,104.91,24.2956]
[1644550834364,0.04852089,104.98,104.91,24.2956]
[1644550834764,0.04852089,104.98,104.91,38.5972]
[1644550835367,1.39138981,104.98,104.91,62.0391]
[1644550835667,1.39138981,104.98,104.92,34.79580158]
[1644550836673,1.39138981,104.98,104.92,49.09690158]
[1644550837473,2.39529357,105.02,104.93,1.83460361]
[1644550837672,2.69682274,105.06,104.95,14.2936]
[1644550837871,2.69682274,105.07,104.96,24.1613]
[1644550838070,14.2904,105.08,104.96,25.99590361]
[1644550838071,2.69682274,105.08,104.96,25.99590361]
[1644550838272,36.07968398,105.07,104.97,36.52866735]
[1644550838470,4.756,105.06,104.97,25.97670361]
[1644550838671,4.756,105.06,104.98,14.2935]
[1644550839873,19.0488,105.06,104.98,14.2935]
[1644550842878,30.1788,105.06,104.98,14.2935]
[1644550843578,30.1788,105.06,104.97,38.4372]
[1644550843777,30.1788,105.06,104.96,24.1613]
[1644550843976,32.87562274,105.06,104.95,4.76]
[1644550844178,24.5558,105.05,104.95,4.76]
[1644550844378,14.2972,105.02,104.95,4.76]
[1644550844577,34.91920422,105.01,104.95,39.07088848]
[1644550845178,34.91920422,105.01,104.94,29.89090361]
[1644550845380,34.91920422,105.01,104.94,28.0563]
[1644550845778,34.91920422,105.01,104.95,14.2976]
[1644550846378,38.8517,105.03,104.95,14.2976]
[1644550846579,38.8517,105.03,104.95,16.1382192]
[1644550847277,66.17477524,105.03,104.95,16.1382192]
[1644550848079,66.17477524,105.03,104.96,4.761]
[1644550848280,66.17477524,105.03,104.97,27.89630891]
[1644550849881,80.47067524,105.03,104.97,27.89630891]
[1644550850183,38.8517,105.03,104.97,27.89630891]
[1644550850482,13.82682274,105.07,104.98,6.6016192]
[1644550850684,13.82682274,105.07,104.99,14.2913]
[1644550850685,2.69682274,105.07,104.99,14.2913]
[1644550850884,2.69682274,105.09,105.0,4.76]
[1644550851283,35.92566147,105.09,105.01,33.58126002]
[1644550851488,40.68266147,105.09,105.0,1.8406192]
[1644550851682,2.39529357,105.08,104.98,22.6421]
[1644550851882,15.886,105.07,104.96,24.9599]
[1644550852081,14.2954,105.04,104.96,24.9599]
[1644550852483,46.0873462,105.03,104.97,33.43388908]
[1644550852784,46.03892665,105.03,104.97,33.43388908]
[1644550852983,46.0873462,105.03,104.97,33.43388908]
[1644550853787,46.0873462,105.03,104.97,70.82138908]
[1644550853987,0.04841955,105.03,104.97,70.82138908]
[1644550854189,39.33041955,105.05,104.97,70.82138908]
[1644550854390,25.03691955,105.05,104.97,70.82138908]
[1644550854588,0.04841955,105.05,104.97,77.07138908]
[1644550854787,0.04841955,105.06,104.98,6.59581126]
[1644550854987,0.04841955,105.04,105.0,14.2886]
[1644550855189,0.04841955,105.07,105.01,13.74847985]
[1644550855488,2.74524229,105.08,105.01,13.74847985]
[1644550855689,0.04841955,105.08,105.01,15.58329111]
[1644550855891,0.04841955,105.08,105.02,1.83481126]
[1644550856090,0.04841955,105.09,105.03,14.2862]
[1644550856288,101.0926063,105.1,105.03,14.2862]
[1644550857089,98.39578356,105.1,105.03,14.2862]
[1644550857289,98.39578356,105.1,105.02,14.288]
[1644550857490,4.759,105.09,105.01,13.74847985]
[1644550857691,14.33831955,105.08,105.01,13.74847985]
[1644550857891,14.33831955,105.08,104.98,52.3909]
[1644550858091,15.89,105.07,104.98,4.759]
[1644550858291,0.04841955,105.06,104.98,4.759]
[1644550858492,2.44371312,105.06,104.98,10.759]
[1644550858693,0.04841955,105.05,104.98,4.759]
[1644550858891,47.9205902,105.05,104.99,42.62842381]
[1644550859090,47.87217065,105.05,104.99,42.62842381]
[1644550859292,47.9205902,105.05,104.99,42.62842381]
[1644550859691,62.2143902,105.05,104.99,42.62842381]
[1644550861091,62.2143902,105.05,104.98,14.2935]
[1644550861693,19.10321955,105.05,104.98,14.2935]
[1644550861893,0.04841955,105.05,104.99,4.761]
[1644550862194,0.04841955,105.06,104.99,28.3288]
[1644550862391,0.04841955,105.06,104.99,42.6197]
[1644550862595,0.04841955,105.06,104.99,37.8587]
[1644550862892,0.04841955,105.06,105.0,35.1741241]
[1644550863093,43.32011955,105.07,105.0,35.1741241]
[1644550863694,43.32011955,105.07,105.0,49.4645241]
[1644550864296,38.56111955,105.07,105.0,49.4645241]
[1644550865494,38.56111955,105.07,105.0,54.2245241]
[1644550865994,41.25794229,105.07,105.0,54.2245241]
[1644550866696,46.01794229,105.07,105.0,49.4645241]
[1644550867398,17.03574229,105.07,105.0,54.2245241]
[1644550867600,0.04841955,105.07,105.0,56.0501205]
[1644550867799,0.04841955,105.07,105.01,22.5818]
[1644550868001,0.04841955,105.09,105.02,14.2865]
[1644550868302,0.04841955,105.07,105.02,14.2865]
[1644550868500,0.04841955,105.09,105.03,1.8255964]
[1644550868701,50.84834229,105.1,105.04,12.00824483]
[1644550869303,50.84834229,105.1,105.04,26.29284483]
[1644550871607,48.15151955,105.1,105.04,26.29284483]
[1644550872108,50.84834229,105.1,105.04,26.29284483]
[1644550872309,50.84834229,105.1,105.04,31.05084483]
[1644550874013,48.15151955,105.1,105.04,31.05084483]
[1644550874912,0.04841955,105.1,105.04,31.05084483]
[1644550875112,4.758,105.13,105.04,32.87638603]
[1644550875113,0.04841955,105.12,105.04,32.87638603]
[1644550875312,0.04841955,105.11,105.05,24.576]
[1644550875514,0.04841955,105.11,105.06,19.0356]
[1644550875712,0.04841955,105.13,105.06,20.86122267]
[1644550876115,0.04841955,105.13,105.07,23.3025]
[1644550876313,0.04841955,105.13,105.08,35.02187159]
[1644550876511,46.43179431,105.14,105.08,35.02187159]
[1644550876912,0.04841955,105.14,105.08,49.30117159]
[1644550877115,41.53444229,105.15,105.08,49.30117159]
[1644550877511,2.69682274,105.14,105.08,49.30117159]
[1644550877712,0.04841955,105.14,105.08,49.30117159]
[1644550877911,79.14833016,105.15,105.08,49.30117159]
[1644550878338,79.14833016,105.15,105.08,14.2793]
[1644550878531,9.84811631,105.14,105.05,4.757]
[1644550878732,14.2821,105.13,105.07,14.2818]
[1644550878932,4.757,105.12,105.04,70.2873]
[1644550879132,0.04841955,105.11,105.04,70.2873]
[1644550879332,43.13779423,105.11,105.04,22.6815]
[1644550879533,0.04841955,105.11,105.04,22.6815]
[1644550879836,2.44371312,105.11,105.04,36.9667]
[1644550880133,0.04841955,105.11,105.04,36.9667]
[1644550880538,0.04841955,105.11,105.04,41.7247]
[1644550881934,0.04841955,105.11,105.04,36.9667]
[1644550882335,9.56571312,105.11,105.04,36.9667]
[1644550882536,7.17041955,105.11,105.04,36.9667]
[1644550882732,0.04841955,105.11,105.04,36.9667]
[1644550884333,0.04841955,105.11,105.04,42.9667]
[1644550884533,0.04841955,105.11,105.04,36.9667]
[1644550885334,0.04841955,105.11,105.04,41.7247]
[1644550886234,0.04841955,105.11,105.04,36.9667]
[1644550888034,14.33231955,105.11,105.04,36.9667]
[1644550888233,14.33231955,105.11,105.04,22.6815]
[1644550888633,4.758,105.1,105.01,28.0995]
[1644550888836,0.04841955,105.09,105.01,4.758]
[1644550889034,15.889,105.08,105.01,4.758]
[1644550889235,14.2901,105.07,105.02,42.78246493]
[1644550889537,14.2901,105.07,105.01,4.758]
[1644550889935,0.04841955,105.08,105.01,4.758]
[1644550890338,0.04841955,105.08,105.01,39.7489412]
[1644550890735,0.04841955,105.08,105.02,24.4592]
[1644550890937,14.2882,105.08,105.02,24.4592]
[1644550891134,14.33661955,105.08,105.02,24.4592]
[1644550891334,4.759,105.07,105.01,4.758]
[1644550891736,18.28429357,105.07,105.01,4.758]
[1644550892335,15.889,105.07,105.01,47.02260467]
[1644550892737,11.13,105.07,105.01,42.26460467]
[1644550892937,0.04841955,105.08,105.01,42.26460467]
[1644550893138,14.33651955,105.08,105.02,38.7244]
[1644550893338,0.04841955,105.09,105.02,38.7244]
[1644550893541,0.04841955,105.1,105.02,38.7244]
[1644550893740,0.04841955,105.1,105.02,38.9744]
[1644550893944,0.04841955,105.1,105.02,40.79544576]
[1644550894143,0.04841955,105.1,105.02,40.54544576]
[1644550894343,0.04841955,105.1,105.02,38.7244]
[1644550894843,14.33381955,105.1,105.02,43.4834]
[1644550897149,0.04841955,105.1,105.02,43.4834]
[1644550898351,0.04841955,105.1,105.02,49.4834]
[1644550898551,14.33371955,105.1,105.02,49.4834]
[1644550898951,14.33371955,105.1,105.02,43.4834]
[1644550899151,39.02181955,105.1,105.02,43.4834]
[1644550899852,41.71864229,105.1,105.02,43.4834]
[1644550900056,39.02181955,105.1,105.02,43.4834]
[1644550900255,41.71864229,105.1,105.02,43.4834]
[1644550901158,5.40141732,105.09,105.02,38.7244]
[1644550901356,14.2885,105.08,105.02,38.7244]
[1644550901554,46.53014294,105.07,105.02,38.7244]
[1644550901953,0.04841955,105.08,105.02,38.7244]
[1644550902154,2.69682274,105.09,105.02,38.7244]
[1644550902155,0.04841955,105.09,105.02,38.7244]
[1644550902356,0.04841955,105.08,105.02,43.4834]
[1644550902554,0.04841955,105.09,105.02,38.7244]
[1644550902954,42.03953677,105.09,105.02,38.7244]
[1644550903755,56.32613677,105.09,105.02,38.7244]
[1644550904056,61.08513677,105.09,105.02,38.7244]
[1644550905059,56.32613677,105.09,105.02,38.7244]
[1644550908270,42.03953677,105.09,105.02,38.7244]
[1644550908870,0.04841955,105.09,105.02,38.7244]
[1644550915190,14.33501955,105.09,105.02,38.7244]
[1644550915494,47.30514545,105.08,105.02,38.7244]
[1644550915690,47.30514545,105.08,105.02,24.4372]
[1644550916393,61.59294545,105.08,105.02,24.4372]
[1644550917693,61.59294545,105.08,105.02,38.7251]
[1644550918092,66.35194545,105.08,105.02,38.7251]
[1644550918295,69.04876819,105.08,105.02,38.7251]
[1644550920695,66.35194545,105.08,105.02,38.7251]
[1644550920998,69.04876819,105.08,105.02,38.7251]
[1644550921597,64.28976819,105.08,105.02,38.7251]
[1644550923602,64.28976819,105.08,105.02,24.4372]
[1644550928304,64.28976819,105.08,105.02,38.7258]
[1644550930406,88.02506819,105.08,105.02,14.2886]
[1644550930609,2.69682274,105.07,104.97,75.0827]
[1644550930831,14.2927,105.04,104.97,22.6873]
[1644550931206,14.2927,105.04,104.98,4.761]
[1644550931409,58.18049995,105.04,104.98,47.19766188]
[1644550931810,58.18049995,105.04,104.98,61.49106188]
[1644550932409,58.18049995,105.04,104.98,56.73006188]
[1644550932809,56.91273862,105.04,104.98,80.38576188]
[1644550933819,56.91273862,105.04,104.98,37.9491]
[1644550934019,56.91273862,105.04,104.97,22.6873]
[1644550934219,72.80373862,105.04,104.95,4.761]
[1644550934424,23.6842,105.03,104.95,4.761]
[1644550934621,14.298,105.01,104.95,4.761]
[1644550936018,35.2872555,105.0,104.95,4.761]
[1644550936221,49.5866555,105.0,104.95,4.761]
[1644550936821,49.5866555,105.0,104.92,29.60465927]
[1644550937023,49.5866555,105.0,104.93,22.5773]
[1644550937623,49.5866555,105.0,104.94,33.38858818]
[1644550938740,49.5866555,105.0,104.93,22.5773]
[1644550939841,49.5866555,105.0,104.93,62.81383503]
[1644550940038,54.3466555,105.0,104.93,62.81383503]
[1644550941239,65.4766555,105.0,104.93,62.81383503]
[1644550945742,25.4294,105.0,104.93,62.81383503]
[1644550945943,14.2994,105.0,104.93,77.11283503]
[1644550946342,23.7189,105.01,104.93,77.11283503]
[1644550946543,38.0167,105.01,104.94,4.763]
[1644550947344,38.0167,105.01,104.94,19.0605]
[1644550947845,14.2978,105.01,104.94,19.0605]
[1644550948044,73.23110945,105.02,104.94,19.0605]
[1644550948344,73.23110945,105.02,104.94,14.2975]
[1644550948745,73.23110945,105.02,104.95,23.424]
[1644550950448,77.99210945,105.02,104.95,23.424]
[1644550951847,77.99210945,105.02,104.95,37.7209]
[1644550953047,14.2963,105.02,104.95,37.7209]
[1644550953247,37.3037,105.03,104.95,37.7209]
[1644550953448,37.3037,105.03,104.96,19.0554]
[1644550954050,37.3037,105.03,104.97,6.9458339]
[1644550954249,14.2951,105.03,104.97,31.3427339]
[1644550954550,7.45482274,105.06,104.97,47.45817966]
[1644550954750,22.538,105.07,104.98,4.761]
[1644550954950,2.69682274,105.08,104.99,23.693]
[1644550955150,22.876,105.09,105.0,4.76]
[1644550955353,36.29372497,105.08,105.01,40.23653503]
[1644550955549,50.58202497,105.08,105.01,40.23653503]
[1644550955749,50.58202497,105.08,105.01,54.52533503]
[1644550957455,1.34945272,105.07,105.01,54.52533503]
[1644550958255,1.34945272,105.06,105.01,54.52533503]
[1644550959058,1.34945272,105.06,105.0,14.2903]
[1644550959356,1.34945272,105.05,104.99,23.693]
[1644550960157,1.34945272,105.05,104.99,66.68684805]
[1644550960757,15.64205272,105.05,104.99,66.68684805]
[1644550963463,1.34945272,105.04,104.99,66.68684805]
[1644550963661,1.34945272,105.04,104.99,42.99384805]
[1644550968666,15.64275272,105.04,104.99,42.99384805]
[1644550970369,1.34945272,105.04,104.99,57.28594805]
[1644550971372,1.34945272,105.04,104.99,42.99384805]
[1644550971573,15.64285272,105.04,104.98,39.1864]
[1644550972469,15.64285272,105.04,104.98,79.0981056]
[1644550974376,1.34945272,105.04,104.98,79.0981056]
[1644550977679,1.34945272,105.04,104.98,83.8591056]
[1644550978784,1.34945272,105.05,104.99,1.82104576]
[1644550978985,1.34945272,105.06,105.0,14.2865]
[1644550979286,1.34945272,105.06,105.0,20.2865]
[1644550979485,1.34945272,105.06,105.01,1.82104576]
[1644550979702,1.34945272,105.06,105.01,23.5811]
[1644550980300,1.34945272,105.06,105.02,14.2857]
[1644550980503,1.34945272,105.06,105.03,7.27066333]
[1644550980702,1.34945272,105.06,105.04,3.68050989]
[1644550980903,1.34945272,105.07,105.04,3.68050989]
[1644550981705,1.34945272,105.07,105.04,17.96590989]
[1644550985005,1.34945272,105.07,105.04,3.68050989]
[1644550985806,0.04841955,105.09,105.04,3.68050989]
[1644550985807,1.34945272,105.06,105.04,3.68050989]
[1644550986007,1.34945272,105.06,105.01,23.5811]
[1644550986407,1.34945272,105.05,105.01,23.5811]
[1644550986607,1.34945272,105.05,104.99,49.12385856]
[1644550987011,1.34945272,105.04,104.99,49.12385856]
[1644550987409,1.34945272,105.04,104.99,34.83215856]
[1644550987610,15.64275272,105.04,104.99,34.83215856]
[1644550988011,1.34945272,105.04,104.99,34.83215856]
[1644550988209,1.34945272,105.04,104.99,41.41420432]
[1644550988410,1.34945272,105.05,104.99,41.41420432]
[1644550988612,1.34945272,105.06,105.0,23.7995]
[1644550988812,1.34945272,105.06,105.01,14.2876]
[1644550989011,1.34945272,105.07,105.01,14.2876]
[1644550989412,1.34945272,105.06,105.01,14.2876]
[1644550989610,1.34945272,105.07,105.01,14.2876]
[1644550993016,1.34945272,105.07,105.01,16.10864566]
[1644550993216,1.34945272,105.07,105.02,23.4373]
[1644550993418,1.34945272,105.08,105.03,14.2855]
[1644550994016,38.29208764,105.08,105.03,14.2855]
[1644550994817,38.29208764,105.08,105.03,26.63571037]
[1644550995419,38.29208764,105.08,105.03,14.2855]
[1644550996323,1.34945272,105.08,105.03,14.2855]
[1644550996527,0.34945272,105.08,105.03,14.2855]
[1644550996823,0.04841955,105.1,105.05,14.2832]
[1644550997126,24.63581955,105.11,105.05,14.2832]
[1644550997323,0.04841955,105.11,105.06,13.88715407]
[1644550997526,2.74524229,105.13,105.06,18.64515407]
[1644550997723,2.74524229,105.14,105.07,1.82104566]
[1644550997925,2.69682274,105.15,105.09,14.2766]
[1644550998224,0.04841955,105.13,105.09,14.2766]
[1644550998423,5.44592258,105.17,105.09,14.2766]
[1644550998623,0.04841955,105.16,105.1,33.29521486]
[1644550999224,0.04841955,105.16,105.11,14.2751]
[1644550999425,4.80441955,105.17,105.11,14.2751]
[1644550999624,0.04841955,105.16,105.11,14.2751]
[1644550999827,4.80441955,105.17,105.11,14.5251]
[1644551000028,0.04841955,105.16,105.12,1.82104566]
[1644551000227,0.04841955,105.18,105.12,7.82104566]
[1644551000426,0.04841955,105.2,105.12,8.07104566]
[1644551000625,0.04841955,105.2,105.13,1.82104566]
[1644551000827,0.04841955,105.2,105.14,13.88715407]
[1644551001027,0.04841955,105.21,105.14,13.88715407]
[1644551001229,0.04841955,105.21,105.15,14.2694]
[1644551001426,4.753,105.21,105.15,14.2694]
[1644551001627,4.80141955,105.21,105.13,23.721]
[1644551001826,4.80141955,105.21,105.12,47.5679]
[1644551001827,0.04841955,105.21,105.12,4.753]
[1644551002125,0.04841955,105.21,105.11,38.0528]
[1644551002126,14.2753,105.19,105.11,38.0528]
[1644551002326,4.80341955,105.18,105.11,38.0528]
[1644551002528,36.41472239,105.17,105.11,77.28872621]
[1644551002725,36.46314194,105.17,105.11,53.50972621]
[1644551002926,36.41472239,105.17,105.11,53.50972621]
[1644551003527,36.41472239,105.17,105.11,14.2738]
[1644551003727,36.41472239,105.17,105.08,51.7015]
[1644551003926,4.80441955,105.16,105.08,46.9485]
[1644551004830,19.08281955,105.16,105.09,35.08519955]
[1644551005431,19.08281955,105.16,105.08,61.2261]
[1644551005629,19.08281955,105.16,105.08,46.9485]
[1644551005830,30.21281955,105.16,105.07,28.8235]
[1644551006030,25.45681955,105.16,105.07,28.8235]
[1644551006528,4.756,105.15,105.07,64.45696584]
[1644551006730,0.04841955,105.14,105.07,40.38946584]
[1644551007330,0.04841955,105.14,105.07,54.66946584]
[1644551007532,0.04841955,105.14,105.07,49.91346584]
[1644551008741,4.80541955,105.14,105.07,49.91346584]
[1644551008939,0.04841955,105.13,105.07,49.91346584]
[1644551009339,0.04841955,105.14,105.07,49.91346584]
[1644551010544,0.04841955,105.14,105.08,4.757]
[1644551010842,14.32911955,105.15,105.07,49.91346584]
[1644551011042,0.04841955,105.13,105.07,49.91346584]
[1644551011246,0.04841955,105.14,105.07,49.91346584]
[1644551011444,0.04841955,105.14,105.07,51.73382959]
[1644551012746,0.04841955,105.14,105.07,49.91346584]
[1644551013144,0.04841955,105.14,105.08,4.757]
[1644551013360,0.04841955,105.14,105.08,14.2785]
[1644551013761,14.32911955,105.15,105.08,14.2785]
[1644551013963,0.04841955,105.15,105.08,14.2785]
[1644551016865,14.32801955,105.15,105.08,14.2785]
[1644551017665,14.32801955,105.15,105.07,49.91396584]
[1644551017868,0.04841955,105.14,105.07,55.91396584]
[1644551018765,0.04841955,105.14,105.07,49.91396584]
[1644551019367,0.04841955,105.14,105.07,55.91396584]
[1644551019567,14.32941955,105.14,105.06,4.756]
[1644551019770,4.80541955,105.13,105.06,4.756]
[1644551019969,11.13,105.12,105.06,4.756]
[1644551020370,4.757,105.11,105.06,4.756]
[1644551020570,44.98759415,105.1,105.06,4.756]
[1644551020770,59.27399415,105.1,105.06,4.756]
[1644551020969,14.2864,105.1,105.06,4.756]
[1644551022468,19.09041955,105.11,105.06,4.756]
[1644551022672,19.042,105.11,105.03,66.25045392]
[1644551022871,0.04841955,105.1,105.03,66.25045392]
[1644551023069,0.04841955,105.1,105.03,68.07081767]
[1644551023871,0.04841955,105.1,105.04,14.2846]
[1644551024070,14.33341955,105.11,105.04,14.2846]
[1644551024872,0.04841955,105.11,105.06,14.2816]
[1644551025072,0.04841955,105.12,105.06,14.2816]
[1644551025279,2.39529357,105.13,105.02,4.758]
[1644551025478,11.17841955,105.11,105.02,4.758]
[1644551025674,14.2916,105.09,104.98,4.782]
[1644551025874,11.13,105.08,104.98,4.758]
[1644551026074,11.13,105.08,104.99,0.024]
[1644551026273,11.13,105.08,104.99,39.61340808]
[1644551026475,11.13,105.08,104.99,39.58940808]
[1644551026674,75.00501955,105.1,105.0,52.4014]
[1644551026675,0.04841955,105.1,105.0,52.4014]
[1644551026876,0.04841955,105.1,105.0,81.8127]
[1644551027075,0.04841955,105.1,105.0,82.0627]
[1644551027475,0.04841955,105.1,105.0,99.6824]
[1644551027675,0.04841955,105.1,105.0,99.4324]
[1644551027876,19.09341955,105.1,105.01,14.2869]
[1644551028081,19.045,105.1,105.01,14.2869]
[1644551028479,30.175,105.1,105.01,14.2869]
[1644551029379,32.57029357,105.1,105.0,4.783]
[1644551030178,51.85304603,105.1,105.0,4.783]
[1644551031781,51.85304603,105.1,105.0,0.024]
[1644551033481,54.54986877,105.1,105.0,0.024]
[1644551034282,73.23482052,105.1,105.0,0.024]
[1644551034482,95.59,105.09,105.0,0.024]
[1644551034683,14.2949,105.07,105.0,0.024]
[1644551034884,15.89,105.06,105.0,0.024]
[1644551035084,11.13,105.06,105.0,0.024]
[1644551036887,14.294,105.05,105.0,0.024]
[1644551037087,14.294,105.05,104.98,0.024]
[1644551037887,45.94656523,105.04,104.98,40.99579727]
[1644551038190,45.94656523,105.04,104.99,0.024]
[1644551038390,60.24166523,105.04,104.99,0.024]
[1644551038588,14.2951,105.04,104.99,0.024]
[1644551038789,38.8494,105.07,104.99,0.024]
[1644551038988,34.0894,105.07,104.99,4.784]
[1644551039289,14.2927,105.05,105.0,0.024]
[1644551043291,25.4227,105.05,105.0,0.024]
[1644551043494,30.1827,105.05,104.98,0.024]
[1644551043693,4.759,105.04,104.97,47.7131]
[1644551043992,14.2967,105.02,104.97,47.7131]
[1644551044194,14.2967,105.02,104.97,92.00768063]
[1644551044392,14.2967,105.02,104.97,91.98368063]
[1644551044593,50.30835786,105.02,104.97,91.98368063]
[1644551044793,14.2967,105.02,104.97,91.98368063]
[1644551048720,14.2967,105.02,104.97,47.6891]
[1644551050527,4.761,105.04,104.97,47.6891]
[1644551050721,24.1451,105.05,104.98,4.761]
[1644551050922,24.1451,105.05,104.98,4.785]
[1644551051521,44.84575468,105.04,104.98,4.785]
[1644551051725,59.13925468,105.04,104.97,62.0074]
[1644551053728,59.13925468,105.04,104.97,47.7131]
[1644551057532,59.13925468,105.04,104.97,62.008]
[1644551059437,59.13925468,105.04,104.97,47.7131]
[1644551060037,4.761,105.03,104.97,47.7131]
[1644551060236,14.2973,105.02,104.97,47.7131]
[1644551061245,14.2973,105.02,104.97,0.024]
[1644551061438,14.2973,105.02,104.96,4.761]
[1644551062940,14.2973,105.02,104.95,22.6956]
[1644551066743,14.2973,105.02,104.95,28.6956]
[1644551067145,14.2973,105.02,104.95,42.9932]
[1644551067348,14.2973,105.02,104.95,38.81356375]
[1644551067745,14.2946,105.03,104.96,4.761]
[1644551067946,33.1095752,105.06,104.96,4.785]
[1644551068145,33.1095752,105.06,104.97,23.6825]
[1644551068346,33.1095752,105.06,104.98,0.024]
[1644551068545,33.1095752,105.06,104.98,14.3172]
[1644551068746,64.8916349,105.06,104.99,1.1070713]
[1644551068946,67.58845764,105.06,104.99,1.1310713]
[1644551069446,64.8916349,105.06,104.99,1.1310713]
[1644551069645,64.8916349,105.06,104.99,24.2831713]
[1644551069847,14.2934,105.04,104.99,24.2831713]
[1644551070447,14.2934,105.04,104.99,23.1761]
[1644551073052,49.01822274,105.07,104.99,37.4687]
[1644551073455,46.3214,105.07,104.99,39.28906375]
[1644551073655,7.50524229,105.09,104.99,39.28906375]
[1644551073854,48.81352004,105.09,105.0,4.76]
[1644551074054,48.81352004,105.09,105.02,22.62190659]
[1644551074253,48.76510049,105.09,105.02,22.62190659]
[1644551074456,14.2879,105.08,105.02,22.62190659]
[1644551075055,2.69682274,105.09,105.02,22.62190659]
[1644551075056,2.69682274,105.09,105.02,24.44227034]
[1644551075259,2.69682274,105.09,105.02,24.69227034]
[1644551075456,0.04841955,105.1,105.02,24.69227034]
[1644551075656,0.04841955,105.11,105.03,22.6506]
[1644551075856,5.40318728,105.12,105.05,14.2821]
[1644551076056,0.04841955,105.11,105.06,38.84846234]
[1644551076256,5.40318728,105.12,105.06,38.84846234]
[1644551076456,56.85750227,105.13,105.06,38.84846234]
[1644551076657,56.80908272,105.13,105.06,38.84846234]
[1644551077762,56.80908272,105.13,105.06,53.13066234]
[1644551078157,56.80908272,105.13,105.06,14.2822]
[1644551078357,56.80908272,105.13,105.04,71.1638]
[1644551078358,77.88932804,105.13,105.04,23.5564]
[1644551078562,15.887,105.12,105.04,23.5564]
[1644551078757,14.287,105.1,105.04,37.8422]
[1644551079157,14.287,105.1,105.05,35.08133377]
[1644551083986,0.04841955,105.11,105.05,49.36593377]
[1644551084187,0.04841955,105.12,105.05,54.12393377]
[1644551084485,0.04841955,105.12,105.05,49.36593377]
[1644551085288,0.04841955,105.12,105.05,14.2846]
[1644551086189,0.04841955,105.12,105.05,49.30905412]
[1644551086789,14.33131955,105.12,105.05,49.30905412]
[1644551087788,14.33131955,105.12,105.05,54.06705412]
[1644551088389,14.33131955,105.12,105.05,19.0426]
[1644551088790,14.33131955,105.12,105.05,14.2846]
[1644551089391,14.33131955,105.12,105.05,59.49807988]
[1644551093895,25.46131955,105.12,105.05,59.49807988]
[1644551096596,25.46131955,105.12,105.05,14.2846]
[1644551096796,27.85661312,105.12,105.04,37.8427]
[1644551096996,4.758,105.11,105.04,37.8427]
[1644551097199,14.2866,105.09,105.04,37.8427]
[1644551097599,34.18605727,105.08,105.04,23.5564]
[1644551098000,34.18605727,105.08,105.03,24.828]
[1644551098796,48.47475727,105.08,105.03,24.828]
[1644551102100,14.2887,105.08,105.03,24.828]
[1644551105504,14.2887,105.08,105.02,14.2887]
[1644551105707,25.4187,105.08,105.0,4.759]
[1644551106005,14.2931,105.05,105.0,4.759]
[1644551106606,62.10047138,105.05,105.0,4.759]
[1644551109318,62.10047138,105.05,104.99,39.24]
[1644551109517,0.29402079,105.02,104.99,39.24]
[1644551110118,0.29402079,105.02,105.0,5.09788683]
[1644551111220,0.29402079,105.02,105.0,3.03219997]
[1644551111520,0.29402079,105.02,104.99,39.24]
[1644551112020,0.29402079,105.02,105.0,5.09788683]
[1644551112622,0.29402079,105.02,104.99,24.9469]
[1644551112823,0.29402079,105.02,104.99,0.024]
[1644551113022,0.29402079,105.02,104.97,0.024]
[1644551113431,25.20832079,105.02,104.94,0.024]
[1644551113628,43.10809411,105.01,104.94,39.7947838]
[1644551113828,14.2993,105.0,104.95,0.024]
[1644551114030,14.2993,105.0,104.94,54.0935838]
[1644551114643,11.13,105.01,104.95,4.763]